[Event "Slovakia Open Piestany-A 2022"]
[Site "Piestany"]
[Date "2022.07.13"]
[Round "3.18"]
[White "Pniaczek, Marek"]
[Black "Holly, Andrej"]
[Result "1-0"]
[ECO "C02"]
[WhiteElo "2312"]
[BlackElo "2213"]
[Annotator "ChessBase"]
[PlyCount "107"]
[EventDate "2022.07.12"]
[EventType "swiss"]
[EventCountry "SVK"]
[SourceTitle "playchess.com"]
[Source "ChessBase"]
[SourceQuality "1"]
[TimeControl "40/5400+30:1800+30"]

1. e4 {[%emt 0:01:49]} e6 {[%emt 0:00:22]} 2. d4 {[%emt 0:00:05]} d5 {[%emt 0:00:03]} 3. e5 {[%emt 0:00:04]} c5 {[%emt 0:00:10]} 4. c3 {[%emt 0:00:06]} Nc6 {[%emt 0:00:29]} 5. Nf3 {[%emt 0:00:04]} Bd7 {[%emt 0:00:04]} 6. Na3 {[%emt 0:00:49]} Nge7 {[%emt 0:04:22]} 7. Nc2 {[%emt 0:01:45]} Ng6 {[%emt 0:01:32]} 8. Bd3 {[%emt 0:08:20]} Be7 {[%emt 0:01:48]} 9. O-O {[%emt 0:04:01]} O-O {[%emt 0:00:59]} 10. Be3 {[%emt 0:07:05]} cxd4 {[%emt 0:14:16]} 11. cxd4 {[%emt 0:00:34]} f6 {[%emt 0:02:19]} 12. exf6 {[%emt 0:00:37]} Bxf6 {[%emt 0:08:31]} 13. Bxg6 {[%emt 0:01:11]} hxg6 {[%emt 0:00:22]} 14. Qd3 {[%emt 0:06:08]} g5 {[%emt 0:03:59]} 15. h3 {[%emt 0:01:40]} Be8 {[%emt 0:06:35]} 16. Qd2 {[%emt 0:06:54]} Bg6 {[%emt 0:01:52]} 17. Rac1 {[%emt 0:03:49]} Be4 {[%emt 0:08:31]} 18. Nxg5 {[%emt 0:01:52]} Bxc2 {[%emt 0:00:31]} 19. Rxc2 {[%emt 0:13:59]} Nxd4 {[%emt 0:00:07]} 20. Bxd4 {[%emt 0:00:28]} Bxg5 {[%emt 0:00:13]} 21. Qe2 {[%emt 0:01:31]} Qd7 {[%emt 0:02:50]} 22. Re1 {[%emt 0:00:53]} Bf6 {[%emt 0:04:14]} 23. Bxf6 {[%emt 0:02:43]} Rxf6 {[%emt 0:00:02]} 24. Qe5 {[%emt 0:00:39]} Rc8 {[%emt 0:02:01]} 25. Rec1 {[%emt 0:00:14]} Rxc2 {[%emt 0:06:29]} 26. Rxc2 {[%emt 0:00:30]} Rf7 {[%emt 0:05:34]} 27. Qb8+ {[%emt 0:00:55]} Rf8 {[%emt 0:00:11]} 28. Qxa7 {[%emt 0:00:41]} d4 {[%emt 0:00:43]} 29. Rd2 {[%emt 0:00:52]} e5 {[%emt 0:02:45]} 30. Qc5 {[%emt 0:01:23]} Qf5 {[%emt 0:04:24]} 31. Qc2 {[%emt 0:08:15]} Qe6 {[%emt 0:02:46]} 32. b3 {[%emt 0:01:19]} b5 {[%emt 0:04:04]} 33. Qc5 {[%emt 0:03:20]} Rc8 {[%emt 0:05:48]} 34. Qxb5 {[%emt 0:00:23]} Rc1+ {[%emt 0:00:20]} 35. Kh2 {[%emt 0:00:04]} Qh6 {[%emt 0:02:21]} 36. Qd5+ {[%emt 0:10:42]} Kh8 {[%emt 0:01:14]} 37. Re2 {[%emt 0:00:05]} Qf4+ {[%emt 0:03:44]} 38. g3 {[%emt 0:00:30]} Qf5 {[%emt 0:00:39]} 39. Qxe5 {[%emt 0:00:28]} Qxe5 {[%emt 0:00:44]} 40. Rxe5 {[%emt 0:00:02]} Rc2 {[%emt 0:00:09]} 41. Kg2 {[%emt 0:30:24]} Rxa2 {[%emt 0:30:11]} 42. Rd5 {[%emt 0:00:10]} Rb2 {[%emt 0:00:12]} 43. Rxd4 {[%emt 0:00:05]} Rxb3 {[%emt 0:00:02]} 44. h4 {[%emt 0:00:36]} Kh7 {[%emt 0:00:40]} 45. Rd6 {[%emt 0:01:00]} Rb4 {[%emt 0:00:14]} 46. f3 {[%emt 0:00:17]} Rb2+ {[%emt 0:00:11]} 47. Kh3 {[%emt 0:00:03]} Rb3 {[%emt 0:00:03]} 48. Kg4 {[%emt 0:00:05]} Rb4+ {[%emt 0:00:03]} 49. f4 {[%emt 0:00:03]} Rb5 {[%emt 0:00:03]} 50. f5 {[%emt 0:00:46]} Rb4+ {[%emt 0:01:13]} 51. Kg5 {[%emt 0:00:05]} Rb3 {[%emt 0:00:12]} 52. g4 {[%emt 0:00:07]} Rf3 {[%emt 0:00:03]} 53. h5 {[%emt 0:00:12]} Rf2 {[%emt 0:00:12]} 54. Rd7 {[%emt 0:00:59]} 1-0

[Event "Slovakia Open Piestany-A 2022"]
[Site "Piestany"]
[Date "2022.07.13"]
[Round "3.19"]
[White "Svana, Peter"]
[Black "Travnicek, Krystof Mikulas"]
[Result "1/2-1/2"]
[ECO "A37"]
[WhiteElo "2280"]
[BlackElo "2138"]
[Annotator "ChessBase"]
[PlyCount "77"]
[EventDate "2022.07.12"]
[EventType "swiss"]
[EventCountry "SVK"]
[SourceTitle "playchess.com"]
[Source "ChessBase"]
[SourceQuality "1"]
[TimeControl "40/5400+30:1800+30"]

1. Nf3 {[%emt 0:01:21]} c5 {[%emt 0:00:40]} 2. c4 {[%emt 0:00:56]} g6 {[%emt 0:00:42]} 3. Nc3 {[%emt 0:05:28]} Bg7 {[%emt 0:00:54]} 4. g3 {[%emt 0:04:09]} Nc6 {[%emt 0:01:17]} 5. Bg2 {[%emt 0:02:08]} d6 {[%emt 0:01:36]} 6. O-O {[%emt 0:01:24]} e5 {[%emt 0:00:56]} 7. d3 {[%emt 0:00:42]} Nge7 {[%emt 0:00:40]} 8. a3 {[%emt 0:02:21]} a5 {[%emt 0:02:11]} 9. Rb1 {[%emt 0:00:23]} O-O {[%emt 0:01:36]} 10. Ne1 {[%emt 0:03:22]} Be6 {[%emt 0:03:43]} 11. Nd5 {[%emt 0:02:08]} Rb8 {[%emt 0:09:21]} 12. Bd2 {[%emt 0:04:39]} b5 {[%emt 0:06:39]} 13. Nc2 {[%emt 0:04:18]} f5 {[%emt 0:08:28]} 14. b4 {[%emt 0:08:55]} axb4 {[%emt 0:19:24]} 15. axb4 {[%emt 0:01:17]} bxc4 {[%emt 0:04:22]} 16. dxc4 {[%emt 0:00:02]} e4 {[%emt 0:01:16]} 17. Bf4 {[%emt 0:07:20]} Bxd5 {[%emt 0:04:17]} 18. cxd5 {[%emt 0:00:58]} Nxb4 {[%emt 0:00:14]} 19. Nxb4 {[%emt 0:00:38]} Rxb4 {[%emt 0:01:09]} 20. Rxb4 {[%emt 0:00:16]} cxb4 {[%emt 0:00:08]} 21. Qb3 {[%emt 0:00:49]} Qb6 {[%emt 0:02:54]} 22. Rb1 {[%emt 0:01:33]} Rc8 {[%emt 0:04:04]} 23. g4 {[%emt 0:10:11]} Bc3 {[%emt 0:11:37]} 24. gxf5 {[%emt 0:03:24]} gxf5 {[%emt 0:01:32]} 25. Bh3 {[%emt 0:02:13]} Qc7 {[%emt 0:03:41]} 26. Kh1 {[%emt 0:04:48]} Ng6 {[%emt 0:01:38]} 27. Rg1 {[%emt 0:02:58]} Kh8 {[%emt 0:02:20]} 28. Bh6 {[%emt 0:06:20]} Qf7 {[%emt 0:01:12]} 29. f3 {[%emt 0:04:36]} exf3 {[%emt 0:01:35]} 30. exf3 {[%emt 0:01:40]} Re8 {[%emt 0:00:49]} 31. Qa4 {[%emt 0:02:46]} Bg7 {[%emt 0:01:33]} 32. Bxg7+ {[%emt 0:01:56]} Kxg7 {[%emt 0:00:02]} 33. Bxf5 {[%emt 0:01:16]} Qxf5 {[%emt 0:03:54]} 34. Qxe8 {[%emt 0:00:09]} Qxf3+ {[%emt 0:00:06]} 35. Rg2 {[%emt 0:00:05]} Qd1+ {[%emt 0:00:22]} 36. Rg1 {[%emt 0:00:20]} Qxd5+ {[%emt 0:00:11]} 37. Rg2 {[%emt 0:00:08]} Qd1+ {[%emt 0:00:40]} 38. Rg1 {[%emt 0:00:09]} Qf3+ {[%emt 0:00:08]} 39. Rg2 {[%emt 0:00:09]} 1/2-1/2

[Event "Slovakia Open Piestany-A 2022"]
[Site "Piestany"]
[Date "2022.07.13"]
[Round "3.20"]
[White "Palchuk, Andrii"]
[Black "Brhel, Jan"]
[Result "1/2-1/2"]
[ECO "D23"]
[WhiteElo "2248"]
[BlackElo "2018"]
[Annotator "ChessBase"]
[PlyCount "33"]
[EventDate "2022.07.12"]
[EventType "swiss"]
[EventCountry "SVK"]
[SourceTitle "playchess.com"]
[Source "ChessBase"]
[SourceQuality "1"]
[TimeControl "40/5400+30:1800+30"]

1. d4 {[%emt 0:07:08]} d5 {[%emt 0:00:27]} 2. Nf3 {[%emt 0:00:35]} Nf6 {[%emt 0:00:38]} 3. c4 {[%emt 0:00:06]} c6 {[%emt 0:01:22]} 4. Qb3 {[%emt 0:00:27]} dxc4 {[%emt 0:00:41]} 5. Qxc4 {[%emt 0:00:06]} Bf5 {[%emt 0:02:12]} 6. g3 {[%emt 0:00:48]} e6 {[%emt 0:00:38]} 7. Bg2 {[%emt 0:00:07]} Be7 {[%emt 0:02:05]} 8. O-O {[%emt 0:00:31]} Nbd7 {[%emt 0:01:45]} 9. Nc3 {[%emt 0:05:26]} O-O {[%emt 0:01:45]} 10. e3 {[%emt 0:02:14]} b5 {[%emt 0:08:08]} 11. Qe2 {[%emt 0:03:39]} b4 {[%emt 0:00:12]} 12. Na4 {[%emt 0:01:17]} Qa5 {[%emt 0:02:13]} 13. b3 {[%emt 0:00:04]} Qb5 {[%emt 0:04:47]} 14. Qd1 {[%emt 0:05:12]} Ne4 {[%emt 0:05:43]} 15. Nd2 {[%emt 0:15:58]} Nxd2 {[%emt 0:06:01]} 16. Bxd2 {[%emt 0:03:35]} Rad8 {[%emt 0:00:20]} 17. e4 {[%emt 0:07:59]} 1/2-1/2

[Event "Slovakia Open Piestany-A 2022"]
[Site "Piestany"]
[Date "2022.07.13"]
[Round "3.21"]
[White "Soham Datar"]
[Black "Pacher, Milan"]
[Result "0-1"]
[ECO "B56"]
[WhiteElo "2111"]
[BlackElo "2399"]
[Annotator "ChessBase"]
[PlyCount "120"]
[EventDate "2022.07.12"]
[EventType "swiss"]
[EventCountry "SVK"]
[SourceTitle "playchess.com"]
[Source "ChessBase"]
[SourceQuality "1"]
[TimeControl "40/5400+30:1800+30"]

1. e4 {[%emt 0:00:06]} c5 {[%emt 0:00:06]} 2. Nf3 {[%emt 0:00:04]} Nc6 {[%emt 0:00:03]} 3. Nc3 {[%emt 0:00:48]} d6 {[%emt 0:00:30]} 4. d4 {[%emt 0:00:22]} cxd4 {[%emt 0:00:03]} 5. Nxd4 {[%emt 0:00:06]} Nf6 {[%emt 0:00:03]} 6. Nd5 {[%emt 0:05:20]} Nxd5 {[%emt 0:04:12]} 7. exd5 {[%emt 0:00:06]} Qa5+ {[%emt 0:00:05]} 8. Bd2 {[%emt 0:00:06]} Qxd5 {[%emt 0:00:12]} 9. Nb5 {[%emt 0:00:04]} Qe6+ {[%emt 0:02:35]} 10. Be2 {[%emt 0:00:06]} Qd7 {[%emt 0:00:05]} 11. c4 {[%emt 0:00:08]} a6 {[%emt 0:00:55]} 12. Nc3 {[%emt 0:00:06]} e6 {[%emt 0:00:46]} 13. O-O {[%emt 0:01:31]} Be7 {[%emt 0:00:23]} 14. Na4 {[%emt 0:04:06]} Qc7 {[%emt 0:02:07]} 15. Be3 {[%emt 0:00:50]} O-O {[%emt 0:00:37]} 16. Nb6 {[%emt 0:01:38]} Rb8 {[%emt 0:00:05]} 17. Rc1 {[%emt 0:01:14]} Rd8 {[%emt 0:06:34]} 18. Qd2 {[%emt 0:03:04]} Bd7 {[%emt 0:01:42]} 19. f4 {[%emt 0:01:06]} Be8 {[%emt 0:01:16]} 20. b4 {[%emt 0:05:01]} Bf8 {[%emt 0:06:39]} 21. Bf3 {[%emt 0:07:56]} Ne7 {[%emt 0:01:48]} 22. b5 {[%emt 0:02:06]} g6 {[%emt 0:01:39]} 23. a4 {[%emt 0:00:40]} Nf5 {[%emt 0:01:08]} 24. Bf2 {[%emt 0:02:00]} h5 {[%emt 0:00:06]} 25. Be4 {[%emt 0:06:56]} Nh6 {[%emt 0:05:02]} 26. h3 {[%emt 0:00:17]} axb5 {[%emt 0:04:17]} 27. cxb5 {[%emt 0:01:59]} Qe7 {[%emt 0:00:07]} 28. Bd3 {[%emt 0:01:10]} d5 {[%emt 0:01:04]} 29. Bd4 {[%emt 0:01:10]} Qb4 {[%emt 0:07:17]} 30. Qe3 {[%emt 0:05:11]} Bg7 {[%emt 0:01:06]} 31. Bc5 {[%emt 0:01:10]} Qa5 {[%emt 0:01:34]} 32. Qe1 {[%emt 0:04:24]} Qxe1 {[%emt 0:01:08]} 33. Rfxe1 {[%emt 0:00:02]} Nf5 {[%emt 0:00:56]} 34. Rb1 {[%emt 0:06:12]} Bc3 {[%emt 0:02:18]} 35. Bxf5 {[%emt 0:05:23]} gxf5 {[%emt 0:05:18]} 36. Red1 {[%emt 0:03:13]} Ba5 {[%emt 0:01:48]} 37. Rd3 {[%emt 0:03:05]} f6 {[%emt 0:01:35]} 38. g4 {[%emt 0:03:22]} hxg4 {[%emt 0:01:15]} 39. hxg4 {[%emt 0:00:02]} Bg6 {[%emt 0:00:22]} 40. g5 {[%emt 0:06:18]} fxg5 {[%emt 0:00:17]} 41. Rg3 {[%emt 0:31:04]} g4 {[%emt 0:30:38]} 42. Rb2 {[%emt 0:00:31]} Kf7 {[%emt 0:01:03]} 43. Re2 {[%emt 0:01:36]} Bxb6 {[%emt 0:10:39]} 44. Bxb6 {[%emt 0:00:10]} Rdc8 {[%emt 0:00:06]} 45. Rge3 {[%emt 0:01:13]} Rc1+ {[%emt 0:00:05]} 46. Kg2 {[%emt 0:00:32]} Re8 {[%emt 0:00:31]} 47. a5 {[%emt 0:03:36]} Rb1 {[%emt 0:01:26]} 48. Rc3 {[%emt 0:00:11]} Rxb5 {[%emt 0:00:06]} 49. Rc7+ {[%emt 0:00:08]} Re7 {[%emt 0:00:04]} 50. Rec2 {[%emt 0:00:10]} e5 {[%emt 0:01:18]} 51. Rxe7+ {[%emt 0:03:08]} Kxe7 {[%emt 0:00:02]} 52. Rc7+ {[%emt 0:00:29]} Ke6 {[%emt 0:01:34]} 53. Rxb7 {[%emt 0:00:29]} d4 {[%emt 0:04:18]} 54. a6 {[%emt 0:01:06]} Be8 {[%emt 0:00:05]} 55. Rb8 {[%emt 0:03:33]} Bc6+ {[%emt 0:00:05]} 56. Kg3 {[%emt 0:01:46]} d3 {[%emt 0:00:29]} 57. a7 {[%emt 0:01:15]} d2 {[%emt 0:01:24]} 58. Rc8 {[%emt 0:01:37]} Bd5 {[%emt 0:00:52]} 59. Re8+ {[%emt 0:01:04]} Kf7 {[%emt 0:00:04]} 60. Rd8 {[%emt 0:02:23]} d1=Q {[%emt 0:00:09]} 0-1

[Event "Slovakia Open Piestany-A 2022"]
[Site "Piestany"]
[Date "2022.07.13"]
[Round "3.22"]
[White "Compel, Daniel"]
[Black "Domalchuk-Jonasson, Aleksandr"]
[Result "1/2-1/2"]
[ECO "A13"]
[WhiteElo "2098"]
[BlackElo "2244"]
[Annotator "ChessBase"]
[PlyCount "73"]
[EventDate "2022.07.12"]
[EventType "swiss"]
[EventCountry "SVK"]
[SourceTitle "playchess.com"]
[Source "ChessBase"]
[SourceQuality "1"]
[TimeControl "40/5400+30:1800+30"]

1. c4 {[%emt 0:02:15]} Nf6 {[%emt 0:00:21]} 2. Nf3 {[%emt 0:00:16]} e6 {[%emt 0:02:03]} 3. Nc3 {[%emt 0:00:27]} d5 {[%emt 0:03:45]} 4. e3 {[%emt 0:00:25]} Be7 {[%emt 0:04:21]} 5. b3 {[%emt 0:00:21]} O-O {[%emt 0:00:39]} 6. Bb2 {[%emt 0:00:13]} c5 {[%emt 0:05:02]} 7. cxd5 {[%emt 0:00:14]} Nxd5 {[%emt 0:03:40]} 8. h4 {[%emt 0:00:09]} h6 {[%emt 0:06:32]} 9. Qb1 {[%emt 0:03:15]} Nc6 {[%emt 0:03:46]} 10. Bc4 {[%emt 0:03:54]} f5 {[%emt 0:10:23]} 11. g4 {[%emt 0:15:51]} fxg4 {[%emt 0:08:32]} 12. Nxd5 {[%emt 0:04:40]} exd5 {[%emt 0:06:02]} 13. Qg6 {[%emt 0:00:34]} Rf7 {[%emt 0:15:34]} 14. Bd3 {[%emt 0:02:59]} Kf8 {[%emt 0:06:40]} 15. Ng5 {[%emt 0:05:07]} Bxg5 {[%emt 0:02:01]} 16. hxg5 {[%emt 0:00:04]} Qxg5 {[%emt 0:00:19]} 17. Qxg5 {[%emt 0:00:06]} hxg5 {[%emt 0:00:05]} 18. Bg6 {[%emt 0:03:44]} Bf5 {[%emt 0:03:01]} 19. Bxf5 {[%emt 0:01:46]} Ke7 {[%emt 0:00:53]} 20. Bg6 {[%emt 0:06:11]} Rf3 {[%emt 0:00:15]} 21. Rh7 {[%emt 0:01:45]} Kd6 {[%emt 0:00:35]} 22. a3 {[%emt 0:03:16]} Ne7 {[%emt 0:00:22]} 23. Bd3 {[%emt 0:02:16]} Raf8 {[%emt 0:01:23]} 24. Rxg7 {[%emt 0:12:05]} g3 {[%emt 0:01:18]} 25. fxg3 {[%emt 0:01:14]} d4 {[%emt 0:00:35]} 26. O-O-O {[%emt 0:01:54]} Rxg3 {[%emt 0:00:05]} 27. Rh1 {[%emt 0:05:15]} dxe3 {[%emt 0:03:17]} 28. Rh6+ {[%emt 0:00:41]} Kd7 {[%emt 0:00:12]} 29. Bb5+ {[%emt 0:00:43]} Kc8 {[%emt 0:01:20]} 30. Rxe7 {[%emt 0:01:53]} exd2+ {[%emt 0:00:07]} 31. Kxd2 {[%emt 0:01:11]} Rxb3 {[%emt 0:00:23]} 32. Be5 {[%emt 0:06:52]} Rxb5 {[%emt 0:00:18]} 33. Rc7+ {[%emt 0:01:09]} Kd8 {[%emt 0:00:04]} 34. Rhh7 {[%emt 0:00:36]} c4 {[%emt 0:02:47]} 35. Rxb7 {[%emt 0:04:48]} Rxb7 {[%emt 0:03:14]} 36. Rxb7 {[%emt 0:00:06]} Rf5 {[%emt 0:02:30]} 37. Bd4 {[%emt 0:02:18]} 1/2-1/2

[Event "Slovakia Open Piestany-A 2022"]
[Site "Piestany"]
[Date "2022.07.13"]
[Round "3.23"]
[White "Leszko, Bence"]
[Black "Zdrazil, Patrik"]
[Result "1-0"]
[ECO "C11"]
[WhiteElo "2241"]
[BlackElo "2103"]
[Annotator "ChessBase"]
[PlyCount "61"]
[EventDate "2022.07.12"]
[EventType "swiss"]
[EventCountry "SVK"]
[SourceTitle "playchess.com"]
[Source "ChessBase"]
[SourceQuality "1"]
[TimeControl "40/5400+30:1800+30"]

1. e4 {[%emt 0:17:46]} e6 {[%emt 0:00:06]} 2. d4 {[%emt 0:00:11]} d5 {[%emt 0:00:05]} 3. Nc3 {[%emt 0:00:06]} Nf6 {[%emt 0:00:07]} 4. e5 {[%emt 0:02:04]} Nfd7 {[%emt 0:00:31]} 5. Nce2 {[%emt 0:00:42]} c5 {[%emt 0:00:26]} 6. c3 {[%emt 0:00:05]} Nc6 {[%emt 0:00:06]} 7. f4 {[%emt 0:00:06]} Qb6 {[%emt 0:00:50]} 8. a3 {[%emt 0:00:46]} f6 {[%emt 0:06:19]} 9. Nf3 {[%emt 0:01:10]} Be7 {[%emt 0:09:21]} 10. Ng3 {[%emt 0:04:35]} O-O {[%emt 0:09:12]} 11. Bd3 {[%emt 0:03:25]} cxd4 {[%emt 0:06:02]} 12. cxd4 {[%emt 0:02:02]} f5 {[%emt 0:23:23]} 13. Ne2 {[%emt 0:00:55]} Qd8 {[%emt 0:04:06]} 14. b4 {[%emt 0:00:31]} Nb6 {[%emt 0:00:08]} 15. Nd2 {[%emt 0:03:35]} Bd7 {[%emt 0:02:09]} 16. Bb2 {[%emt 0:01:25]} Na4 {[%emt 0:04:49]} 17. Qxa4 {[%emt 0:08:20]} Nxb4 {[%emt 0:00:05]} 18. Qb3 {[%emt 0:00:07]} Ba4 {[%emt 0:00:04]} 19. Qc3 {[%emt 0:00:40]} Rc8 {[%emt 0:00:17]} 20. axb4 {[%emt 0:01:00]} Rxc3 {[%emt 0:00:07]} 21. Bxc3 {[%emt 0:00:23]} Qd7 {[%emt 0:00:57]} 22. Kf2 {[%emt 0:00:51]} Rc8 {[%emt 0:07:24]} 23. Ke3 {[%emt 0:04:02]} g5 {[%emt 0:01:09]} 24. g3 {[%emt 0:00:25]} Kh8 {[%emt 0:06:01]} 25. b5 {[%emt 0:03:08]} Bxb5 {[%emt 0:00:17]} 26. Bxb5 {[%emt 0:00:05]} Qxb5 {[%emt 0:00:05]} 27. Rhb1 {[%emt 0:00:05]} Qe8 {[%emt 0:02:32]} 28. Rxb7 {[%emt 0:00:37]} gxf4+ {[%emt 0:00:07]} 29. gxf4 {[%emt 0:00:06]} Qh5 {[%emt 0:00:24]} 30. Rxe7 {[%emt 0:02:13]} Qxh2 {[%emt 0:00:40]} 31. Raxa7 {[%emt 0:01:32]} 1-0

[Event "Slovakia Open Piestany-A 2022"]
[Site "Piestany"]
[Date "2022.07.13"]
[Round "3.24"]
[White "Aradhya, Garg"]
[Black "Warchol, Kamil"]
[Result "0-1"]
[ECO "A11"]
[WhiteElo "2229"]
[BlackElo "2121"]
[Annotator "ChessBase"]
[PlyCount "124"]
[EventDate "2022.07.12"]
[EventType "swiss"]
[EventCountry "SVK"]
[SourceTitle "playchess.com"]
[Source "ChessBase"]
[SourceQuality "1"]
[TimeControl "40/5400+30:1800+30"]

1. Nf3 {[%emt 0:00:02]} d5 {[%emt 0:00:19]} 2. g3 {[%emt 0:00:01]} Nf6 {[%emt 0:00:25]} 3. Bg2 {[%emt 0:00:02]} c6 {[%emt 0:00:34]} 4. O-O {[%emt 0:00:13]} Bf5 {[%emt 0:00:40]} 5. c4 {[%emt 0:00:52]} e6 {[%emt 0:05:57]} 6. d3 {[%emt 0:03:07]} h6 {[%emt 0:09:59]} 7. Nc3 {[%emt 0:04:52]} Nbd7 {[%emt 0:10:19]} 8. cxd5 {[%emt 0:00:56]} cxd5 {[%emt 0:06:21]} 9. e4 {[%emt 0:05:10]} dxe4 {[%emt 0:21:35]} 10. dxe4 {[%emt 0:00:04]} Nxe4 {[%emt 0:04:42]} 11. Nd4 {[%emt 0:00:34]} Ndc5 {[%emt 0:08:55]} 12. Nxe4 {[%emt 0:06:33]} Bxe4 {[%emt 0:04:48]} 13. Bxe4 {[%emt 0:00:10]} Nxe4 {[%emt 0:00:01]} 14. Qa4+ {[%emt 0:00:02]} Qd7 {[%emt 0:01:55]} 15. Nb5 {[%emt 0:00:05]} Rc8 {[%emt 0:03:01]} 16. Rd1 {[%emt 0:00:43]} Qc6 {[%emt 0:02:30]} 17. Be3 {[%emt 0:05:53]} a6 {[%emt 0:03:11]} 18. Rac1 {[%emt 0:26:39]} Nc5 {[%emt 0:02:55]} 19. Bxc5 {[%emt 0:03:26]} axb5 {[%emt 0:00:33]} 20. Qf4 {[%emt 0:00:17]} Bxc5 {[%emt 0:02:15]} 21. b4 {[%emt 0:00:01]} Bxf2+ {[%emt 0:04:50]} 22. Kxf2 {[%emt 0:10:47]} Qb6+ {[%emt 0:00:06]} 23. Ke2 {[%emt 0:00:22]} Rxc1 {[%emt 0:02:05]} 24. Rxc1 {[%emt 0:02:03]} O-O {[%emt 0:00:06]} 25. Qe3 {[%emt 0:00:05]} Qa6 {[%emt 0:02:11]} 26. a3 {[%emt 0:00:10]} Ra8 {[%emt 0:00:36]} 27. Qd3 {[%emt 0:01:47]} Qb6 {[%emt 0:00:43]} 28. Rc5 {[%emt 0:00:24]} Rd8 {[%emt 0:00:18]} 29. Rxb5 {[%emt 0:00:35]} Qc7 {[%emt 0:00:14]} 30. Rc5 {[%emt 0:02:09]} Qb8 {[%emt 0:00:01]} 31. Qc3 {[%emt 0:00:26]} Qa8 {[%emt 0:00:49]} 32. Kf2 {[%emt 0:03:20]} Re8 {[%emt 0:01:42]} 33. Rc7 {[%emt 0:00:26]} Qa7+ {[%emt 0:00:31]} 34. Qe3 {[%emt 0:00:24]} Qa6 {[%emt 0:00:23]} 35. Kg2 {[%emt 0:00:37]} b5 {[%emt 0:01:16]} 36. Qa7 {[%emt 0:01:04]} Ra8 {[%emt 0:00:50]} 37. Qxa6 {[%emt 0:01:13]} Rxa6 {[%emt 0:00:01]} 38. Rc3 {[%emt 0:01:13]} Kf8 {[%emt 0:00:22]} 39. Kf3 {[%emt 0:00:01]} Ke7 {[%emt 0:00:20]} 40. Ke4 {[%emt 0:00:16]} Kd7 {[%emt 0:00:37]} 41. g4 {[%emt 0:30:16]} Rc6 {[%emt 0:31:27]} 42. Rf3 {[%emt 0:01:16]} Rc4+ {[%emt 0:00:00]} 43. Kd3 {[%emt 0:00:00]} f6 {[%emt 0:00:00]} 44. h3 {[%emt 0:00:00]} e5 {[%emt 0:00:00]} 45. Rf1 {[%emt 0:00:00]} Ke6 {[%emt 0:00:00]} 46. Ra1 {[%emt 0:00:00]} Kd5 {[%emt 0:00:00]} 47. Ra2 {[%emt 0:00:00]} g6 {[%emt 0:00:00]} 48. a4 {[%emt 0:00:00]} Rxb4 {[%emt 0:00:00]} 49. axb5 {[%emt 0:00:00]} Rxb5 {[%emt 0:00:00]} 50. Ra6 {[%emt 0:00:00]} e4+ {[%emt 0:00:00]} 51. Kc3 {[%emt 0:00:00]} Ke5 {[%emt 0:00:00]} 52. Ra8 {[%emt 0:00:00]} Rc5+ {[%emt 0:00:00]} 53. Kd2 {[%emt 0:00:00]} Kf4 {[%emt 0:00:00]} 54. Rg8 {[%emt 0:00:00]} Rg5 {[%emt 0:00:00]} 55. Ra8 {[%emt 0:00:00]} f5 {[%emt 0:01:20]} 56. Rh8 {[%emt 0:00:00]} h5 {[%emt 0:00:53]} 57. gxf5 {[%emt 0:00:00]} gxf5 {[%emt 0:00:20]} 58. h4 {[%emt 0:00:00]} Rg2+ {[%emt 0:00:06]} 59. Kd1 {[%emt 0:00:00]} Kf3 {[%emt 0:01:28]} 60. Rxh5 {[%emt 0:00:00]} f4 {[%emt 0:00:06]} 61. Rg5 {[%emt 0:00:00]} Rg4 {[%emt 0:00:24]} 62. Ke1 {[%emt 0:00:00]} Rxh4 {[%emt 0:00:25]} 0-1

[Event "Slovakia Open Piestany-A 2022"]
[Site "Piestany"]
[Date "2022.07.13"]
[Round "3.26"]
[White "Zvarik, Martin"]
[Black "Balint, Peter"]
[Result "0-1"]
[ECO "C20"]
[WhiteElo "2213"]
[BlackElo "2051"]
[Annotator "ChessBase"]
[PlyCount "48"]
[EventDate "2022.07.12"]
[EventType "swiss"]
[EventCountry "SVK"]
[SourceTitle "playchess.com"]
[Source "ChessBase"]
[SourceQuality "1"]
[TimeControl "40/5400+30:1800+30"]

1. e4 {[%emt 0:04:24]} e5 {[%emt 0:00:05]} 2. b3 {[%emt 0:00:23]} Nf6 {[%emt 0:03:21]} 3. Qe2 {[%emt 0:02:22]} Nc6 {[%emt 0:02:24]} 4. Bb2 {[%emt 0:00:06]} Bc5 {[%emt 0:02:27]} 5. Nf3 {[%emt 0:00:39]} d6 {[%emt 0:02:47]} 6. h3 {[%emt 0:06:56]} O-O {[%emt 0:05:04]} 7. g3 {[%emt 0:08:34]} d5 {[%emt 0:06:38]} 8. exd5 {[%emt 0:05:33]} Nxd5 {[%emt 0:01:05]} 9. Bg2 {[%emt 0:03:27]} Re8 {[%emt 0:09:34]} 10. O-O {[%emt 0:08:33]} e4 {[%emt 0:03:58]} 11. Ne1 {[%emt 0:06:47]} e3 {[%emt 0:01:54]} 12. dxe3 {[%emt 0:12:17]} Nxe3 {[%emt 0:00:20]} 13. fxe3 {[%emt 0:01:20]} Bxe3+ {[%emt 0:00:38]} 14. Kh1 {[%emt 0:07:13]} Bd4 {[%emt 0:01:13]} 15. Bxd4 {[%emt 0:10:07]} Rxe2 {[%emt 0:00:20]} 16. Bc3 {[%emt 0:02:43]} Be6 {[%emt 0:01:01]} 17. Na3 {[%emt 0:01:40]} Qd7 {[%emt 0:00:56]} 18. g4 {[%emt 0:02:05]} Qd6 {[%emt 0:01:11]} 19. Nc4 {[%emt 0:00:38]} Qg3 {[%emt 0:02:47]} 20. Rf3 {[%emt 0:00:14]} Qh4 {[%emt 0:00:07]} 21. Ne3 {[%emt 0:01:29]} Qg5 {[%emt 0:02:23]} 22. Nd3 {[%emt 0:01:44]} Re8 {[%emt 0:03:24]} 23. Raf1 {[%emt 0:02:28]} Rxe3 {[%emt 0:04:21]} 24. Bd2 {[%emt 0:00:15]} Bd5 {[%emt 0:00:12]} 0-1

[Event "Slovakia Open Piestany-A 2022"]
[Site "Piestany"]
[Date "2022.07.13"]
[Round "3.27"]
[White "Gyerpal, Adrian"]
[Black "Pennica, Andrea"]
[Result "1-0"]
[ECO "A49"]
[WhiteElo "2193"]
[BlackElo "1986"]
[Annotator "ChessBase"]
[PlyCount "55"]
[EventDate "2022.07.12"]
[EventType "swiss"]
[EventCountry "SVK"]
[SourceTitle "playchess.com"]
[Source "ChessBase"]
[SourceQuality "1"]
[TimeControl "40/5400+30:1800+30"]

1. Nf3 {[%emt 0:00:20]} Nf6 {[%emt 0:01:34]} 2. g3 {[%emt 0:01:01]} c5 {[%emt 0:01:47]} 3. c4 {[%emt 0:00:42]} g6 {[%emt 0:00:48]} 4. Bg2 {[%emt 0:00:58]} Bg7 {[%emt 0:00:06]} 5. O-O {[%emt 0:00:53]} O-O {[%emt 0:00:05]} 6. d4 {[%emt 0:01:07]} e6 {[%emt 0:02:28]} 7. Nc3 {[%emt 0:04:20]} Re8 {[%emt 0:07:52]} 8. dxc5 {[%emt 0:03:58]} Na6 {[%emt 0:09:50]} 9. Qc2 {[%emt 0:14:41]} Nxc5 {[%emt 0:01:58]} 10. e4 {[%emt 0:00:19]} b6 {[%emt 0:02:24]} 11. e5 {[%emt 0:09:51]} Ng4 {[%emt 0:00:15]} 12. h3 {[%emt 0:02:15]} Nh6 {[%emt 0:00:54]} 13. Bg5 {[%emt 0:06:58]} Re7 {[%emt 0:02:30]} 14. Bxe7 {[%emt 0:08:35]} Qxe7 {[%emt 0:00:30]} 15. b4 {[%emt 0:02:54]} Na6 {[%emt 0:00:00]} 16. a3 {[%emt 0:01:01]} Bb7 {[%emt 0:00:00]} 17. Nb5 {[%emt 0:01:55]} Rf8 {[%emt 0:09:36]} 18. Rad1 {[%emt 0:05:46]} Bxf3 {[%emt 0:02:25]} 19. Bxf3 {[%emt 0:00:13]} Bxe5 {[%emt 0:00:05]} 20. Qd2 {[%emt 0:01:43]} Nf5 {[%emt 0:01:18]} 21. Qxd7 {[%emt 0:03:12]} Qg5 {[%emt 0:00:40]} 22. Bg2 {[%emt 0:03:40]} Nb8 {[%emt 0:07:27]} 23. Qd3 {[%emt 0:09:11]} Qf6 {[%emt 0:03:50]} 24. Nxa7 {[%emt 0:02:13]} Qe7 {[%emt 0:04:31]} 25. Nb5 {[%emt 0:00:43]} h5 {[%emt 0:00:14]} 26. Qe4 {[%emt 0:03:06]} Bg7 {[%emt 0:00:38]} 27. Qb7 {[%emt 0:01:35]} Qg5 {[%emt 0:01:04]} 28. Qxb6 {[%emt 0:02:54]} 1-0